[Event "Titled Tuesday Blitz March 21 Early 2023"]
[White "Ronka, Erik"]
[Black "Zohid6"]
[WhiteFideId "505080"]
[WhiteElo "2264"]
[BlackElo "2791"]
[Result "1/2-1/2"]
[Round "01"]
[TimeControl "180+2"]
[Date "2023.03.21"]
[WhiteClock "0:00:07"]
[BlackClock "0:01:04"]

1. e4 {[%clk 0:03:00]}  e6 {[%clk 0:02:56]} 2. d4 {[%clk 0:03:00]}  d5 {[%clk 0:02:56]} 3. exd5 {[%clk 0:03:01]}  exd5 {[%clk 0:02:56]} 4. Nf3 {[%clk 0:03:02]}  Nc6 {[%clk 0:02:56]} 5. Bb5 {[%clk 0:03:01]}  Bd6 {[%clk 0:02:57]} 6. c4 {[%clk 0:03:02]}  dxc4 {[%clk 0:02:54]} 7. d5 {[%clk 0:03:03]}  a6 {[%clk 0:02:51]} 8. Ba4 {[%clk 0:03:02]}  b5 {[%clk 0:02:51]} 9. dxc6 {[%clk 0:03:02]}  bxa4 {[%clk 0:02:52]} 10. O-O {[%clk 0:03:03]}  Ne7 {[%clk 0:02:53]} 11. Nbd2 {[%clk 0:03:02]}  Be6 {[%clk 0:02:52]} 12. Qxa4 {[%clk 0:02:52]}  O-O {[%clk 0:02:50]} 13. Nxc4 {[%clk 0:02:46]}  Bd5 {[%clk 0:02:48]} 14. Nxd6 {[%clk 0:02:17]}  Bxc6 {[%clk 0:02:46]} 15. Qf4 {[%clk 0:01:36]}  cxd6 {[%clk 0:02:33]} 16. Nd4 {[%clk 0:01:30]}  Bb7 {[%clk 0:02:20]} 17. b3 {[%clk 0:01:30]}  Ng6 {[%clk 0:02:17]} 18. Qg3 {[%clk 0:01:19]}  Qf6 {[%clk 0:02:11]} 19. Bb2 {[%clk 0:01:14]}  Rfe8 {[%clk 0:02:09]} 20. Rad1 {[%clk 0:01:07]}  Rac8 {[%clk 0:02:07]} 21. Ba1 {[%clk 0:01:07]}  Qe5 {[%clk 0:02:01]} 22. Qxe5 {[%clk 0:00:58]}  dxe5 {[%clk 0:02:01]} 23. Nf5 {[%clk 0:00:58]}  Rb8 {[%clk 0:01:53]} 24. Nd6 {[%clk 0:00:56]}  Rf8 {[%clk 0:01:53]} 25. Nxb7 {[%clk 0:00:45]}  Rxb7 {[%clk 0:01:54]} 26. Rd6 {[%clk 0:00:46]}  Ra8 {[%clk 0:01:52]} 27. Rfd1 {[%clk 0:00:45]}  f6 {[%clk 0:01:51]} 28. g3 {[%clk 0:00:45]}  h5 {[%clk 0:01:48]} 29. h4 {[%clk 0:00:41]}  Kh7 {[%clk 0:01:44]} 30. Kg2 {[%clk 0:00:34]}  a5 {[%clk 0:01:44]} 31. Rd7 {[%clk 0:00:24]}  Rbb8 {[%clk 0:01:27]} 32. Rc7 {[%clk 0:00:19]}  Nf8 {[%clk 0:01:24]} 33. f4 {[%clk 0:00:18]}  exf4 {[%clk 0:01:19]} 34. Bxf6 {[%clk 0:00:17]}  Ne6 {[%clk 0:01:20]} 35. Re7 {[%clk 0:00:17]}  Re8 {[%clk 0:01:20]} 36. Rxe8 {[%clk 0:00:13]}  Rxe8 {[%clk 0:01:21]} 37. Bc3 {[%clk 0:00:13]}  fxg3 {[%clk 0:01:20]} 38. Kxg3 {[%clk 0:00:13]}  a4 {[%clk 0:01:21]} 39. bxa4 {[%clk 0:00:13]}  Nc5 {[%clk 0:01:22]} 40. Bd4 {[%clk 0:00:11]}  Nxa4 {[%clk 0:01:20]} 41. Kf4 {[%clk 0:00:10]}  Re6 {[%clk 0:01:18]} 42. Rg1 {[%clk 0:00:10]}  g6 {[%clk 0:01:17]} 43. Rb1 {[%clk 0:00:09]}  Rc6 {[%clk 0:01:12]} 44. Rb7+ {[%clk 0:00:09]}  Kg8 {[%clk 0:01:13]} 45. Rg7+ {[%clk 0:00:09]}  Kf8 {[%clk 0:01:13]} 46. Rd7 {[%clk 0:00:09]}  Nc5 {[%clk 0:01:13]} 47. Bxc5+ {[%clk 0:00:08]}  Rxc5 {[%clk 0:01:14]} 48. Ra7 {[%clk 0:00:08]}  Rf5+ {[%clk 0:01:11]} 49. Kg3 {[%clk 0:00:08]}  Rf1 {[%clk 0:01:09]} 50. a4 {[%clk 0:00:08]}  Ke8 {[%clk 0:01:08]} 51. a5 {[%clk 0:00:08]}  Ra1 {[%clk 0:01:08]} 52. a6 {[%clk 0:00:08]}  Ra4 {[%clk 0:01:07]} 53. Ra8+ {[%clk 0:00:08]}  Kf7 {[%clk 0:01:08]} 54. a7 {[%clk 0:00:08]}  Kg7 {[%clk 0:01:08]} 55. Kh3 {[%clk 0:00:08]}  Ra3+ {[%clk 0:01:05]} 56. Kg2 {[%clk 0:00:08]}  Kh7 {[%clk 0:01:05]} 57. Kf2 {[%clk 0:00:08]}  Kg7 {[%clk 0:01:04]} 58. Kg2 {[%clk 0:00:08]}  Ra4 {[%clk 0:01:03]} 59. Kg3 {[%clk 0:00:08]}  Ra6 {[%clk 0:01:03]} 60. Kf4 {[%clk 0:00:09]}  Ra3 {[%clk 0:01:03]} 61. Ke5 {[%clk 0:00:08]}  g5 {[%clk 0:01:01]} 62. hxg5 {[%clk 0:00:07]}  h4 {[%clk 0:01:01]} 63. Kf4 {[%clk 0:00:06]}  h3 {[%clk 0:01:01]} 64. Rd8 {[%clk 0:00:06]}  Rxa7 {[%clk 0:00:59]} 65. Rd3 {[%clk 0:00:06]}  h2 {[%clk 0:00:59]} 66. Rh3 {[%clk 0:00:06]}  Ra2 {[%clk 0:00:58]} 67. Kg3 {[%clk 0:00:05]}  Kg6 {[%clk 0:00:59]} 68. Rxh2 {[%clk 0:00:05]}  Ra4 {[%clk 0:00:59]} 69. Rh4 {[%clk 0:00:05]}  Ra5 {[%clk 0:01:00]} 70. Rg4 {[%clk 0:00:05]}  Kh5 {[%clk 0:01:00]} 71. Rh4+ {[%clk 0:00:04]}  Kxg5 {[%clk 0:01:00]} 72. Rg4+ {[%clk 0:00:05]}  Kf5 {[%clk 0:01:01]} 73. Rb4 {[%clk 0:00:05]}  Ra3+ {[%clk 0:01:00]} 74. Kf2 {[%clk 0:00:06]}  Ke5 {[%clk 0:01:00]} 75. Ke2 {[%clk 0:00:06]}  Rh3 {[%clk 0:01:00]} 76. Kf2 {[%clk 0:00:06]}  Kd5 {[%clk 0:01:01]} 77. Kg2 {[%clk 0:00:06]}  Rc3 {[%clk 0:01:01]} 78. Rg4 {[%clk 0:00:06]}  Ke5 {[%clk 0:01:02]} 79. Rb4 {[%clk 0:00:07]}  Rc2+ {[%clk 0:01:02]} 80. Kf3 {[%clk 0:00:07]}  Rc3+ {[%clk 0:01:02]} 81. Ke2 {[%clk 0:00:07]}  Kd5 {[%clk 0:01:03]} 82. Rh4 {[%clk 0:00:07]}  Rc4 {[%clk 0:01:04]} 83. Rxc4 {[%clk 0:00:07]}  Kxc4 {[%clk 0:01:04]} 1/2-1/2


[Site "https://www.chess.com"]

[Event "Titled Tuesday Blitz March 21 Early 2023"]
[White "rikchessmx"]
[Black "Pakleza, Zbigniew"]
[BlackFideId "1119290"]
[WhiteElo "2417"]
[BlackElo "2410"]
[Result "0-1"]
[Round "01"]
[TimeControl "180+2"]
[Date "2023.03.21"]
[WhiteClock "0:00:51"]
[BlackClock "0:00:44"]

1. e4 {[%clk 0:02:49]}  d6 {[%clk 0:03:00]} 2. d4 {[%clk 0:02:48]}  Nf6 {[%clk 0:03:00]} 3. Nc3 {[%clk 0:02:49]}  c6 {[%clk 0:03:01]} 4. f3 {[%clk 0:02:48]}  Qb6 {[%clk 0:03:01]} 5. Nge2 {[%clk 0:02:47]}  e5 {[%clk 0:03:00]} 6. a4 {[%clk 0:02:38]}  Be7 {[%clk 0:02:58]} 7. a5 {[%clk 0:02:38]}  Qc7 {[%clk 0:02:59]} 8. Ng3 {[%clk 0:02:36]}  O-O {[%clk 0:02:58]} 9. Bc4 {[%clk 0:02:35]}  Re8 {[%clk 0:02:53]} 10. O-O {[%clk 0:02:34]}  Nbd7 {[%clk 0:02:52]} 11. Be3 {[%clk 0:02:34]}  Bf8 {[%clk 0:02:51]} 12. Qd2 {[%clk 0:02:32]}  Rb8 {[%clk 0:02:46]} 13. Bb3 {[%clk 0:02:31]}  b5 {[%clk 0:02:44]} 14. axb6 {[%clk 0:02:25]}  axb6 {[%clk 0:02:45]} 15. Rfd1 {[%clk 0:02:21]}  b5 {[%clk 0:02:32]} 16. Nce2 {[%clk 0:02:16]}  Nb6 {[%clk 0:02:09]} 17. dxe5 {[%clk 0:02:10]}  dxe5 {[%clk 0:02:10]} 18. Nf5 {[%clk 0:02:07]}  Bxf5 {[%clk 0:01:58]} 19. exf5 {[%clk 0:02:06]}  Nfd5 {[%clk 0:01:49]} 20. Bg5 {[%clk 0:02:01]}  Nc4 {[%clk 0:01:44]} 21. Bxc4 {[%clk 0:01:58]}  bxc4 {[%clk 0:01:45]} 22. Ra2 {[%clk 0:01:49]}  Bc5+ {[%clk 0:01:25]} 23. Kh1 {[%clk 0:01:48]}  f6 {[%clk 0:01:23]} 24. Bh4 {[%clk 0:01:38]}  Ne3 {[%clk 0:01:23]} 25. Rda1 {[%clk 0:01:35]}  Nxf5 {[%clk 0:01:21]} 26. Bg3 {[%clk 0:01:31]}  h5 {[%clk 0:01:05]} 27. Qc3 {[%clk 0:01:31]}  Qf7 {[%clk 0:01:02]} 28. Be1 {[%clk 0:01:16]}  Bb4 {[%clk 0:00:54]} 29. Qxb4 {[%clk 0:01:15]}  Rxb4 {[%clk 0:00:55]} 30. Bxb4 {[%clk 0:01:15]}  Nd4 {[%clk 0:00:49]} 31. Ra7 {[%clk 0:00:57]}  Qg6 {[%clk 0:00:47]} 32. Ng3 {[%clk 0:00:51]}  Nxc2 {[%clk 0:00:44]} 0-1


[Site "https://www.chess.com"]

[Event "Titled Tuesday Blitz March 21 Early 2023"]
[White "Tarasova, Viktoriya"]
[Black "Gadimbayli, Abdulla"]
[WhiteFideId "4175840"]
[BlackFideId "13404938"]
[WhiteElo "2182"]
[BlackElo "2390"]
[Result "1-0"]
[Round "01"]
[TimeControl "180+2"]
[Date "2023.03.21"]
[WhiteClock "0:00:09"]
[BlackClock "0:00:07"]

1. d4 {[%clk 0:03:00]}  d5 {[%clk 0:02:55]} 2. c4 {[%clk 0:03:00]}  e5 {[%clk 0:02:55]} 3. dxe5 {[%clk 0:02:59]}  d4 {[%clk 0:02:56]} 4. Nf3 {[%clk 0:03:00]}  Nc6 {[%clk 0:02:57]} 5. a3 {[%clk 0:03:00]}  Nge7 {[%clk 0:02:57]} 6. Nbd2 {[%clk 0:03:00]}  Ng6 {[%clk 0:02:58]} 7. Nb3 {[%clk 0:03:00]}  Ngxe5 {[%clk 0:02:58]} 8. Nxe5 {[%clk 0:02:56]}  Nxe5 {[%clk 0:02:59]} 9. Qxd4 {[%clk 0:02:52]}  Qxd4 {[%clk 0:02:51]} 10. Nxd4 {[%clk 0:02:52]}  Nxc4 {[%clk 0:02:48]} 11. Nb5 {[%clk 0:02:42]}  Bd6 {[%clk 0:02:45]} 12. e4 {[%clk 0:02:11]}  Be6 {[%clk 0:02:08]} 13. Nxd6+ {[%clk 0:01:48]}  Nxd6 {[%clk 0:02:03]} 14. f3 {[%clk 0:01:48]}  O-O-O {[%clk 0:01:56]} 15. Bf4 {[%clk 0:01:43]}  Rhe8 {[%clk 0:01:34]} 16. g4 {[%clk 0:01:30]}  Bb3 {[%clk 0:00:50]} 17. Rc1 {[%clk 0:01:07]}  c6 {[%clk 0:00:47]} 18. Kf2 {[%clk 0:00:45]}  f6 {[%clk 0:00:35]} 19. Be2 {[%clk 0:00:44]}  Nf7 {[%clk 0:00:35]} 20. h4 {[%clk 0:00:39]}  Ne5 {[%clk 0:00:33]} 21. Rc3 {[%clk 0:00:39]}  Bf7 {[%clk 0:00:23]} 22. Rhc1 {[%clk 0:00:38]}  Rd7 {[%clk 0:00:21]} 23. b4 {[%clk 0:00:38]}  a6 {[%clk 0:00:19]} 24. a4 {[%clk 0:00:37]}  Re6 {[%clk 0:00:07]} 25. b5 {[%clk 0:00:37]}  axb5 {[%clk 0:00:08]} 26. axb5 {[%clk 0:00:37]}  Rc7 {[%clk 0:00:07]} 27. Ke3 {[%clk 0:00:33]}  Kd7 {[%clk 0:00:06]} 28. Bg3 {[%clk 0:00:28]}  Kc8 {[%clk 0:00:05]} 29. f4 {[%clk 0:00:26]}  Nd7 {[%clk 0:00:04]} 30. f5 {[%clk 0:00:26]}  Re8 {[%clk 0:00:04]} 31. Bxc7 {[%clk 0:00:26]}  Kxc7 {[%clk 0:00:05]} 32. bxc6 {[%clk 0:00:27]}  bxc6 {[%clk 0:00:05]} 33. Rxc6+ {[%clk 0:00:27]}  Kd8 {[%clk 0:00:06]} 34. Rc8+ {[%clk 0:00:27]}  Ke7 {[%clk 0:00:07]} 35. Rxe8+ {[%clk 0:00:27]}  Bxe8 {[%clk 0:00:08]} 36. Bb5 {[%clk 0:00:26]}  Ne5 {[%clk 0:00:07]} 37. Bxe8 {[%clk 0:00:22]}  Kxe8 {[%clk 0:00:08]} 38. g5 {[%clk 0:00:16]}  Kf8 {[%clk 0:00:08]} 39. Rc7 {[%clk 0:00:14]}  Kg8 {[%clk 0:00:08]} 40. Kf4 {[%clk 0:00:12]}  Nd3+ {[%clk 0:00:08]} 41. Ke3 {[%clk 0:00:13]}  Ne5 {[%clk 0:00:09]} 42. gxf6 {[%clk 0:00:13]}  gxf6 {[%clk 0:00:09]} 43. h5 {[%clk 0:00:12]}  h6 {[%clk 0:00:08]} 44. Kd4 {[%clk 0:00:11]}  Kf8 {[%clk 0:00:06]} 45. Kd5 {[%clk 0:00:12]}  Nf7 {[%clk 0:00:04]} 46. Ke6 {[%clk 0:00:10]}  Ng5+ {[%clk 0:00:05]} 47. Kxf6 {[%clk 0:00:10]}  Nxe4+ {[%clk 0:00:06]} 48. Kg6 {[%clk 0:00:10]}  Nd6 {[%clk 0:00:06]} 49. Rd7 {[%clk 0:00:09]}  Ke8 {[%clk 0:00:07]} 50. Rxd6 {[%clk 0:00:09]} 1-0


[Site "https://www.chess.com"]

[Event "Titled Tuesday Blitz March 21 Early 2023"]
[White "Yuan, Qingyu"]
[Black "Shevtchenko, Olesya"]
[WhiteFideId "8609772"]
[BlackFideId "24131890"]
[WhiteElo "2359"]
[BlackElo "2003"]
[Result "1-0"]
[Round "01"]
[TimeControl "180+2"]
[Date "2023.03.21"]
[WhiteClock "0:00:36"]
[BlackClock "0:01:11"]

1. e4 {[%clk 0:03:00]}  c6 {[%clk 0:02:59]} 2. d4 {[%clk 0:02:58]}  d5 {[%clk 0:03:00]} 3. exd5 {[%clk 0:02:59]}  cxd5 {[%clk 0:03:00]} 4. Bd3 {[%clk 0:02:59]}  Nc6 {[%clk 0:03:01]} 5. c3 {[%clk 0:02:59]}  Qc7 {[%clk 0:03:01]} 6. h3 {[%clk 0:02:58]}  Nf6 {[%clk 0:03:01]} 7. Nf3 {[%clk 0:02:59]}  g6 {[%clk 0:03:01]} 8. O-O {[%clk 0:02:59]}  Bf5 {[%clk 0:03:02]} 9. Re1 {[%clk 0:02:57]}  Bg7 {[%clk 0:03:01]} 10. Bxf5 {[%clk 0:02:55]}  gxf5 {[%clk 0:03:02]} 11. Nh4 {[%clk 0:02:56]}  O-O-O {[%clk 0:01:46]} 12. Nxf5 {[%clk 0:02:53]}  Bf8 {[%clk 0:01:47]} 13. Qf3 {[%clk 0:02:49]}  e6 {[%clk 0:01:46]} 14. Bg5 {[%clk 0:02:31]}  Ne4 {[%clk 0:01:38]} 15. Bxd8 {[%clk 0:02:23]}  Qxd8 {[%clk 0:01:39]} 16. Ng3 {[%clk 0:02:17]}  Nxg3 {[%clk 0:01:38]} 17. fxg3 {[%clk 0:02:13]}  Qd7 {[%clk 0:01:32]} 18. Nd2 {[%clk 0:02:07]}  f5 {[%clk 0:01:32]} 19. Qe3 {[%clk 0:01:56]}  Nd8 {[%clk 0:01:30]} 20. Nf3 {[%clk 0:01:54]}  Bd6 {[%clk 0:01:29]} 21. Ne5 {[%clk 0:01:51]}  Qc7 {[%clk 0:01:29]} 22. Re2 {[%clk 0:01:48]}  Rg8 {[%clk 0:01:29]} 23. Qf3 {[%clk 0:01:40]}  Nf7 {[%clk 0:01:28]} 24. Nxf7 {[%clk 0:01:34]}  Qxf7 {[%clk 0:01:29]} 25. g4 {[%clk 0:01:34]}  f4 {[%clk 0:01:28]} 26. Rae1 {[%clk 0:01:33]}  Re8 {[%clk 0:01:25]} 27. g5 {[%clk 0:01:30]}  Qg6 {[%clk 0:01:22]} 28. Qg4 {[%clk 0:01:29]}  Kd7 {[%clk 0:01:23]} 29. Kh1 {[%clk 0:01:22]}  Re7 {[%clk 0:01:19]} 30. b3 {[%clk 0:01:13]}  a6 {[%clk 0:01:20]} 31. c4 {[%clk 0:01:13]}  dxc4 {[%clk 0:01:19]} 32. d5 {[%clk 0:01:00]}  cxb3 {[%clk 0:01:16]} 33. axb3 {[%clk 0:00:50]}  Qd3 {[%clk 0:01:13]} 34. Rxe6 {[%clk 0:00:46]}  Rxe6 {[%clk 0:01:10]} 35. Qxe6+ {[%clk 0:00:46]}  Kc7 {[%clk 0:01:09]} 36. Rc1+ {[%clk 0:00:46]}  Kb8 {[%clk 0:01:09]} 37. Qxd6+ {[%clk 0:00:47]}  Ka7 {[%clk 0:01:10]} 38. Qc5+ {[%clk 0:00:44]}  Kb8 {[%clk 0:01:10]} 39. Qf8+ {[%clk 0:00:36]}  Ka7 {[%clk 0:01:11]} 40. Qxf4 {[%clk 0:00:36]} 1-0


[Site "https://www.chess.com"]

[Event "Titled Tuesday Blitz March 21 Early 2023"]
[White "Forgacs, Attila Jr."]
[Black "Idani, Pouya"]
[WhiteFideId "773654"]
[BlackFideId "12510130"]
[WhiteElo "2168"]
[BlackElo "2574"]
[Result "0-1"]
[Round "01"]
[TimeControl "180+2"]
[Date "2023.03.21"]
[WhiteClock "0:00:08"]
[BlackClock "0:00:13"]

1. e4 {[%clk 0:03:00]}  c5 {[%clk 0:02:22]} 2. Nf3 {[%clk 0:02:58]}  d6 {[%clk 0:02:19]} 3. d4 {[%clk 0:02:59]}  cxd4 {[%clk 0:02:19]} 4. Nxd4 {[%clk 0:02:59]}  Nf6 {[%clk 0:02:18]} 5. Nc3 {[%clk 0:03:00]}  Nc6 {[%clk 0:02:19]} 6. Bg5 {[%clk 0:02:59]}  e6 {[%clk 0:02:18]} 7. Nxc6 {[%clk 0:02:50]}  bxc6 {[%clk 0:02:12]} 8. Bd3 {[%clk 0:02:51]}  Be7 {[%clk 0:02:04]} 9. O-O {[%clk 0:02:49]}  Qc7 {[%clk 0:01:53]} 10. Kh1 {[%clk 0:02:48]}  O-O {[%clk 0:01:42]} 11. f4 {[%clk 0:02:47]}  h6 {[%clk 0:01:37]} 12. Bh4 {[%clk 0:02:19]}  Rb8 {[%clk 0:01:36]} 13. b3 {[%clk 0:02:09]}  Nxe4 {[%clk 0:01:31]} 14. Nxe4 {[%clk 0:02:09]}  Bxh4 {[%clk 0:01:31]} 15. Nxd6 {[%clk 0:02:10]}  Rd8 {[%clk 0:01:30]} 16. Nxc8 {[%clk 0:02:05]}  Rbxc8 {[%clk 0:01:30]} 17. Qg4 {[%clk 0:02:01]}  Bf6 {[%clk 0:01:30]} 18. Rad1 {[%clk 0:01:57]}  c5 {[%clk 0:01:29]} 19. Qf3 {[%clk 0:01:39]}  Qa5 {[%clk 0:01:23]} 20. Qe4 {[%clk 0:01:34]}  g6 {[%clk 0:01:16]} 21. a4 {[%clk 0:01:34]}  Rd4 {[%clk 0:01:14]} 22. Qe2 {[%clk 0:01:32]}  Rcd8 {[%clk 0:01:12]} 23. Rde1 {[%clk 0:01:17]}  Qc7 {[%clk 0:01:10]} 24. Qe3 {[%clk 0:00:52]}  Kg7 {[%clk 0:01:09]} 25. Bc4 {[%clk 0:00:48]}  R8d6 {[%clk 0:01:03]} 26. c3 {[%clk 0:00:47]}  Rd2 {[%clk 0:01:03]} 27. Re2 {[%clk 0:00:44]}  Rxe2 {[%clk 0:00:52]} 28. Bxe2 {[%clk 0:00:45]}  Qa5 {[%clk 0:00:52]} 29. Rc1 {[%clk 0:00:28]}  h5 {[%clk 0:00:50]} 30. h3 {[%clk 0:00:28]}  h4 {[%clk 0:00:50]} 31. Bb5 {[%clk 0:00:20]}  Qc7 {[%clk 0:00:24]} 32. b4 {[%clk 0:00:20]}  Rd5 {[%clk 0:00:21]} 33. bxc5 {[%clk 0:00:18]}  Rxc5 {[%clk 0:00:22]} 34. c4 {[%clk 0:00:18]}  Rf5 {[%clk 0:00:20]} 35. Qd2 {[%clk 0:00:15]}  Rxf4 {[%clk 0:00:19]} 36. a5 {[%clk 0:00:14]}  Rd4 {[%clk 0:00:18]} 37. Qc2 {[%clk 0:00:13]}  Qg3 {[%clk 0:00:17]} 38. a6 {[%clk 0:00:12]}  Be5 {[%clk 0:00:17]} 39. Kg1 {[%clk 0:00:09]}  Qh2+ {[%clk 0:00:16]} 40. Kf1 {[%clk 0:00:10]}  Rf4+ {[%clk 0:00:16]} 41. Ke1 {[%clk 0:00:09]}  Qg1+ {[%clk 0:00:16]} 42. Kd2 {[%clk 0:00:09]}  Qxg2+ {[%clk 0:00:14]} 43. Kd3 {[%clk 0:00:09]}  Qg3+ {[%clk 0:00:13]} 44. Ke2 {[%clk 0:00:07]}  Rf2+ {[%clk 0:00:14]} 45. Kd1 {[%clk 0:00:08]}  Qg1# {[%clk 0:00:13]} 0-1


[Site "https://www.chess.com"]

[Event "Titled Tuesday Blitz March 21 Early 2023"]
[White "Mahdavi, Reza"]
[Black "Fernandez Garcia, Gumersindo"]
[WhiteFideId "12595926"]
[BlackFideId "24516740"]
[WhiteElo "2208"]
[BlackElo "2093"]
[Result "1-0"]
[Round "01"]
[TimeControl "180+2"]
[Date "2023.03.21"]
[WhiteClock "0:01:12"]
[BlackClock "0:00:42"]

1. Nf3 {[%clk 0:02:54]}  Nf6 {[%clk 0:03:00]} 2. g3 {[%clk 0:02:52]}  d5 {[%clk 0:02:57]} 3. Bg2 {[%clk 0:02:52]}  Bf5 {[%clk 0:02:57]} 4. c4 {[%clk 0:02:44]}  c6 {[%clk 0:02:56]} 5. cxd5 {[%clk 0:02:44]}  cxd5 {[%clk 0:02:54]} 6. Qb3 {[%clk 0:02:45]}  Qb6 {[%clk 0:02:52]} 7. Qxb6 {[%clk 0:02:45]}  axb6 {[%clk 0:02:51]} 8. Nc3 {[%clk 0:02:46]}  Nc6 {[%clk 0:02:48]} 9. d3 {[%clk 0:02:46]}  e5 {[%clk 0:02:45]} 10. Bg5 {[%clk 0:02:46]}  Bb4 {[%clk 0:02:44]} 11. O-O {[%clk 0:02:26]}  Be6 {[%clk 0:02:32]} 12. Nb5 {[%clk 0:02:22]}  Ke7 {[%clk 0:02:22]} 13. a3 {[%clk 0:02:21]}  Bd6 {[%clk 0:02:15]} 14. Rfc1 {[%clk 0:02:05]}  h6 {[%clk 0:02:10]} 15. Be3 {[%clk 0:01:52]}  d4 {[%clk 0:02:07]} 16. Bd2 {[%clk 0:01:53]}  Rhc8 {[%clk 0:02:05]} 17. Rc2 {[%clk 0:01:49]}  Nd5 {[%clk 0:01:51]} 18. Rac1 {[%clk 0:01:47]}  Na5 {[%clk 0:01:46]} 19. Rxc8 {[%clk 0:01:40]}  Rxc8 {[%clk 0:01:44]} 20. Rxc8 {[%clk 0:01:40]}  Bxc8 {[%clk 0:01:44]} 21. Nfxd4 {[%clk 0:01:39]}  Nc7 {[%clk 0:01:07]} 22. Nxd6 {[%clk 0:01:20]}  Kxd6 {[%clk 0:01:04]} 23. Bb4+ {[%clk 0:01:21]}  Kd7 {[%clk 0:01:01]} 24. Nf5 {[%clk 0:01:20]}  Ne6 {[%clk 0:00:57]} 25. Bd5 {[%clk 0:01:17]}  g6 {[%clk 0:00:47]} 26. Nxh6 {[%clk 0:01:16]}  Nc6 {[%clk 0:00:47]} 27. Bxc6+ {[%clk 0:01:13]}  bxc6 {[%clk 0:00:48]} 28. Nxf7 {[%clk 0:01:14]}  c5 {[%clk 0:00:47]} 29. Nxe5+ {[%clk 0:01:14]}  Kd6 {[%clk 0:00:47]} 30. Bc3 {[%clk 0:01:15]}  g5 {[%clk 0:00:47]} 31. f3 {[%clk 0:01:12]}  Bb7 {[%clk 0:00:44]} 32. Kf2 {[%clk 0:01:12]}  Ke7 {[%clk 0:00:43]} 33. h4 {[%clk 0:01:11]}  gxh4 {[%clk 0:00:42]} 34. gxh4 {[%clk 0:01:12]}  Kf8 {[%clk 0:00:42]} 35. Nd7+ {[%clk 0:01:12]} 1-0


[Site "https://www.chess.com"]

[Event "Titled Tuesday Blitz March 21 Early 2023"]
[White "Vaishali, Rameshbabu"]
[Black "Silva, Caio Henrique Angelico"]
[WhiteFideId "5091756"]
[BlackFideId "22777210"]
[WhiteElo "2410"]
[BlackElo "2096"]
[Result "1/2-1/2"]
[Round "01"]
[TimeControl "180+2"]
[Date "2023.03.21"]
[WhiteClock "0:00:03"]
[BlackClock "0:00:08"]

1. d4 {[%clk 0:02:58]}  Nf6 {[%clk 0:02:57]} 2. Nf3 {[%clk 0:02:56]}  g6 {[%clk 0:02:57]} 3. Nc3 {[%clk 0:02:48]}  d5 {[%clk 0:02:56]} 4. Bf4 {[%clk 0:02:49]}  a6 {[%clk 0:02:51]} 5. e3 {[%clk 0:02:44]}  Bg7 {[%clk 0:02:47]} 6. Ne5 {[%clk 0:02:42]}  c5 {[%clk 0:02:31]} 7. h4 {[%clk 0:02:38]}  Nc6 {[%clk 0:02:25]} 8. Be2 {[%clk 0:02:35]}  cxd4 {[%clk 0:02:24]} 9. exd4 {[%clk 0:02:36]}  Qb6 {[%clk 0:02:13]} 10. Nxc6 {[%clk 0:02:20]}  bxc6 {[%clk 0:02:11]} 11. Na4 {[%clk 0:02:19]}  Qa5+ {[%clk 0:02:06]} 12. c3 {[%clk 0:02:19]}  h5 {[%clk 0:02:03]} 13. Nc5 {[%clk 0:02:11]}  O-O {[%clk 0:01:56]} 14. a4 {[%clk 0:02:08]}  Re8 {[%clk 0:01:39]} 15. Be5 {[%clk 0:02:06]}  Qd8 {[%clk 0:01:30]} 16. O-O {[%clk 0:01:57]}  Nd7 {[%clk 0:01:10]} 17. Nxd7 {[%clk 0:01:55]}  Bxd7 {[%clk 0:01:10]} 18. Bxg7 {[%clk 0:01:46]}  Kxg7 {[%clk 0:01:10]} 19. Bf3 {[%clk 0:01:46]}  Rb8 {[%clk 0:01:06]} 20. Qd2 {[%clk 0:01:38]}  e5 {[%clk 0:01:04]} 21. dxe5 {[%clk 0:01:35]}  Rxe5 {[%clk 0:01:04]} 22. g3 {[%clk 0:01:28]}  Qf6 {[%clk 0:01:00]} 23. Bg2 {[%clk 0:01:26]}  Ree8 {[%clk 0:00:57]} 24. a5 {[%clk 0:01:25]}  Bf5 {[%clk 0:00:51]} 25. Rae1 {[%clk 0:01:24]}  Qd8 {[%clk 0:00:45]} 26. Qd4+ {[%clk 0:01:21]}  Kg8 {[%clk 0:00:43]} 27. b4 {[%clk 0:01:18]}  Qd7 {[%clk 0:00:35]} 28. Qd2 {[%clk 0:01:04]}  Rbd8 {[%clk 0:00:24]} 29. Rxe8+ {[%clk 0:01:00]}  Rxe8 {[%clk 0:00:25]} 30. Re1 {[%clk 0:01:01]}  Rxe1+ {[%clk 0:00:21]} 31. Qxe1 {[%clk 0:01:02]}  Qd6 {[%clk 0:00:20]} 32. Qe3 {[%clk 0:01:00]}  Be6 {[%clk 0:00:17]} 33. Qb6 {[%clk 0:00:59]}  Qe5 {[%clk 0:00:17]} 34. Qxc6 {[%clk 0:00:31]}  Qe1+ {[%clk 0:00:17]} 35. Kh2 {[%clk 0:00:31]}  Qxf2 {[%clk 0:00:17]} 36. b5 {[%clk 0:00:29]}  axb5 {[%clk 0:00:12]} 37. a6 {[%clk 0:00:29]}  Kh7 {[%clk 0:00:11]} 38. Qb7 {[%clk 0:00:27]}  Bg4 {[%clk 0:00:07]} 39. a7 {[%clk 0:00:24]}  Kg7 {[%clk 0:00:03]} 40. a8=Q {[%clk 0:00:06]}  Bf3 {[%clk 0:00:04]} 41. Qxf7+ {[%clk 0:00:06]}  Kxf7 {[%clk 0:00:03]} 42. Qb7+ {[%clk 0:00:06]}  Kf8 {[%clk 0:00:02]} 43. Qb8+ {[%clk 0:00:06]}  Kg7 {[%clk 0:00:03]} 44. Qe5+ {[%clk 0:00:06]}  Kg8 {[%clk 0:00:03]} 45. Qb8+ {[%clk 0:00:04]}  Kh7 {[%clk 0:00:03]} 46. Qc7+ {[%clk 0:00:04]}  Kh8 {[%clk 0:00:03]} 47. Qc8+ {[%clk 0:00:03]}  Kh7 {[%clk 0:00:03]} 48. Qd7+ {[%clk 0:00:04]}  Kh8 {[%clk 0:00:03]} 49. Qe8+ {[%clk 0:00:04]}  Kg7 {[%clk 0:00:03]} 50. Qe5+ {[%clk 0:00:04]}  Kg8 {[%clk 0:00:03]} 51. Qe6+ {[%clk 0:00:04]}  Kg7 {[%clk 0:00:03]} 52. Qd7+ {[%clk 0:00:04]}  Kg8 {[%clk 0:00:04]} 53. Qe8+ {[%clk 0:00:03]}  Kg7 {[%clk 0:00:04]} 54. Qe7+ {[%clk 0:00:04]}  Kg8 {[%clk 0:00:05]} 55. Qd8+ {[%clk 0:00:04]}  Kg7 {[%clk 0:00:05]} 56. Qc7+ {[%clk 0:00:04]}  Kg8 {[%clk 0:00:06]} 57. Qb8+ {[%clk 0:00:04]}  Kg7 {[%clk 0:00:06]} 58. Qb7+ {[%clk 0:00:04]}  Kg8 {[%clk 0:00:06]} 59. Qc8+ {[%clk 0:00:04]}  Kg7 {[%clk 0:00:07]} 60. Qd7+ {[%clk 0:00:05]}  Kg8 {[%clk 0:00:07]} 61. Qd8+ {[%clk 0:00:05]}  Kg7 {[%clk 0:00:07]} 62. Qe7+ {[%clk 0:00:06]}  Kg8 {[%clk 0:00:08]} 63. Qe8+ {[%clk 0:00:03]}  Kg7 {[%clk 0:00:08]} 1/2-1/2


[Site "https://www.chess.com"]